bitfinex-derivatives/quotes_SOLF0:USTF0_20251208
["timestamp","ask_amount","ask_price","bid_price","bid_amount"]
[1765158586750,3.41143498,133.65,133.56,3.11]
[1765158586751,3.36,133.63,133.56,3.11]
[1765158586944,3.31,133.61,133.56,3.11]
[1765158587949,3.33280966,133.6,133.57,3.18689442]
[1765158588853,0.05280966,133.6,133.57,3.18689442]
[1765158590055,3.19280966,133.6,133.57,0.05689442]
[1765158590551,3.19280966,133.6,133.57,3.18689442]
[1765158593158,0.05280966,133.6,133.57,3.18689442]
[1765158593354,0.05280966,133.6,133.58,3.13]
[1765158596559,0.05280966,133.6,133.59,3.13]
[1765158599744,0.05280966,133.6,133.58,3.33]
[1765158599950,3.22280966,133.6,133.57,0.05689442]
[1765158600863,3.22280966,133.6,133.57,3.38689442]
[1765158601351,3.22280966,133.6,133.57,0.05689442]
[1765158601761,3.22280966,133.6,133.57,3.38689442]
[1765158602563,0.05280966,133.6,133.57,3.38689442]
[1765158605053,0.05280966,133.6,133.57,10.12419442]
[1765158605255,0.05280966,133.6,133.58,3.33]
[1765158607954,3.22280966,133.6,133.57,0.05689442]
[1765158608351,3.22280966,133.6,133.57,3.38689442]
[1765158608966,3.22280966,133.6,133.57,0.05689442]
[1765158611762,3.22280966,133.6,133.57,3.38689442]
[1765158612564,3.22280966,133.6,133.57,0.05689442]
[1765158612761,5.17771914,133.58,133.57,0.05689442]
[1765158613858,5.17771914,133.58,133.52,2.00771914]
[1765158613859,3.17,133.56,133.52,5.33771914]
[1765158614062,3.17,133.56,133.52,3.33]
[1765158614367,3.17,133.54,133.49,2.00771914]
[1765158614569,3.17,133.54,133.49,5.33771914]
[1765158614755,3.17,133.54,133.49,3.33]
[1765158614960,0.04916943,133.53,133.5,0.0478926]
[1765158615254,0.04916943,133.53,133.5,3.3778926]
[1765158616666,3.21916943,133.53,133.5,3.3778926]
[1765158617158,0.04916943,133.53,133.5,3.3778926]
[1765158619172,0.04916943,133.53,133.52,3.08]
[1765158619676,3.31,133.6,133.53,3.08]
[1765158620564,0.05090175,133.58,133.55,3.13242867]
[1765158621464,3.36090175,133.58,133.55,3.13242867]
[1765158621664,3.36090175,133.58,133.55,0.05242867]
[1765158622368,3.36090175,133.58,133.49,3.08]
[1765158622369,3.31,133.57,133.49,3.08]
[1765158623072,3.31,133.55,133.49,3.08]
[1765158623374,0.05145191,133.53,133.51,0.05434255]
[1765158623583,0.05145191,133.53,133.51,3.13434255]
[1765158626575,0.05145191,133.53,133.52,3.08]
[1765158627073,3.36,133.61,133.54,3.08]
[1765158627469,3.36,133.6,133.54,3.08]
[1765158627972,0.05161154,133.58,133.56,0.04881055]
[1765158628270,0.05161154,133.58,133.56,3.12881055]
[1765158632780,3.41161154,133.58,133.56,0.04881055]
[1765158633274,0.05161154,133.58,133.56,0.04881055]
[1765158633485,0.05161154,133.58,133.56,3.12881055]
[1765158634680,0.05161154,133.58,133.56,6.26444996]
[1765158634978,0.05161154,133.58,133.57,3.08]
[1765158636881,0.05161154,133.58,133.56,6.26444996]
[1765158637378,3.41161154,133.58,133.56,0.04881055]
[1765158642582,3.36,133.57,133.56,0.04881055]
[1765158643590,3.36,133.56,133.51,3.08]
[1765158644587,3.41655291,133.55,133.52,0.05210301]
[1765158644890,3.41655291,133.55,133.52,3.13210301]
[1765158645080,0.05655291,133.55,133.52,3.13210301]
[1765158647183,0.05655291,133.55,133.52,9.87180301]
[1765158647990,0.05655291,133.55,133.53,3.37]
[1765158649410,3.41655291,133.55,133.52,0.05210301]
[1765158650609,3.36,133.54,133.52,0.05210301]
[1765158652699,6.79515291,133.55,133.52,3.42210301]
[1765158652898,10.15515291,133.55,133.52,3.42210301]
[1765158653800,10.15515291,133.55,133.52,0.05210301]
[1765158654405,0.05655291,133.55,133.52,3.42210301]
[1765158654611,3.41655291,133.55,133.52,3.42210301]
[1765158656000,0.05655291,133.55,133.52,3.42210301]
[1765158657212,3.30655291,133.55,133.52,3.42210301]
[1765158658910,3.25,133.54,133.52,3.42210301]
[1765158659109,3.25,133.54,133.52,0.05210301]
[1765158659715,9.9891,133.54,133.52,0.05210301]
[1765158660508,3.25,133.53,133.52,0.05210301]
[1765158662213,3.30655291,133.55,133.52,3.15210301]
[1765158667218,3.30655291,133.55,133.52,0.05210301]
[1765158670122,0.05655291,133.55,133.52,3.15210301]
[1765158670322,0.05655291,133.55,133.53,3.1]
[1765158670523,3.30655291,133.55,133.52,0.05210301]
[1765158672833,3.25,133.53,133.49,3.1]
[1765158673022,3.25,133.53,133.46,6.23947458]
[1765158673218,6.38947458,133.51,133.43,3.1]
[1765158673424,3.25,133.49,133.43,3.1]
[1765158673924,3.30267473,133.47,133.45,0.05087252]
[1765158676432,3.25,133.46,133.45,0.05087252]
[1765158677131,3.30267473,133.47,133.45,0.05087252]
[1765158677337,0.05267473,133.47,133.45,3.15087252]
[1765158682435,0.05267473,133.47,133.46,6.43947458]
[1765158686031,3.35,133.53,133.47,3.3]
[1765158686236,3.35,133.53,133.49,3.3]
[1765158687029,0.0542393,133.52,133.5,0.05418764]
[1765158687237,3.4042393,133.52,133.5,0.05418764]
[1765158690937,0.0542393,133.52,133.5,3.35418764]
[1765158692137,0.0542393,133.52,133.51,2.00953]
[1765158692343,0.0542393,133.52,133.51,5.30953]
[1765158692943,3.35,133.6,133.53,3.3]
[1765158693142,3.35,133.58,133.55,2.00953]
[1765158693729,3.40150389,133.58,133.55,2.06066664]
[1765158693933,3.40150389,133.58,133.55,5.36066664]
[1765158696245,3.40150389,133.58,133.55,3.35113664]
[1765158696446,3.40150389,133.58,133.55,2.06066664]
[1765158697335,3.40150389,133.58,133.55,5.36066664]
[1765158698646,3.40150389,133.58,133.55,2.06066664]
[1765158698849,3.40150389,133.58,133.55,0.05113664]
[1765158699337,3.40150389,133.58,133.55,5.36066664]
[1765158701446,3.40150389,133.58,133.55,0.05113664]
[1765158703551,3.40150389,133.58,133.55,3.35113664]
[1765158705549,10.13870389,133.58,133.55,0.05113664]
[1765158705852,3.35,133.57,133.55,0.05113664]
[1765158707554,3.35,133.56,133.51,5.30953]
[1765158707747,3.35,133.56,133.52,3.3]
[1765158708354,3.36,133.55,133.52,3.3]
[1765158708653,3.40841531,133.55,133.52,3.3940397]
[1765158709452,0.04841531,133.55,133.53,5.34953]
[1765158710755,3.40841531,133.55,133.52,0.0540397]
[1765158711347,10.14701531,133.55,133.52,0.0540397]
[1765158711547,3.36,133.54,133.52,0.0540397]
[1765158711856,3.36,133.53,133.52,0.0540397]
[1765158712359,3.36,133.52,133.46,2.00953]
[1765158712552,3.36,133.5,133.46,2.00953]
[1765158712750,3.36,133.5,133.44,5.34953]
[1765158712953,3.36,133.49,133.45,3.34]
[1765158713160,5.36953,133.51,133.47,3.34]
[1765158713463,3.41533391,133.5,133.48,0.05654099]
[1765158718861,10.15663391,133.5,133.48,0.05654099]
[1765158719061,3.08,133.49,133.48,0.05654099]
[1765158720960,0.05533391,133.5,133.49,3.3]
[1765158721163,0.05533391,133.5,133.48,5.36607099]
[1765158721357,0.05533391,133.5,133.49,3.3]
[1765158721550,2.00953,133.57,133.49,3.3]
[1765158721755,3.08,133.56,133.53,5.30953]
[1765158722159,3.08,133.55,133.53,2.00953]
[1765158722465,3.13241583,133.55,133.53,2.05675904]
[1765158723360,0.05241583,133.55,133.53,5.35675904]
[1765158724067,0.05241583,133.55,133.53,2.05675904]
[1765158724261,3.08,133.53,133.47,3.3]
[1765158724463,3.08,133.53,133.45,64.52]
[1765158724464,3.08,133.53,133.48,2.00953]
[1765158724666,3.08,133.51,133.46,2.00953]
[1765158724867,3.08,133.49,133.44,2.00953]
[1765158725067,3.08,133.49,133.44,5.30953]
[1765158725261,0.05589467,133.48,133.46,2.00953]
[1765158725468,0.05589467,133.48,133.46,5.30953]
[1765158727371,0.05589467,133.48,133.46,2.00953]
[1765158728077,0.05589467,133.48,133.46,5.30953]
[1765158728774,0.05589467,133.48,133.47,3.3]
[1765158730371,9.8191,133.54,133.48,3.3]
[1765158730576,3.08,133.53,133.48,5.30953]
[1765158731266,3.13001482,133.52,133.49,0.04796702]
[1765158731470,9.87021482,133.52,133.49,0.04796702]
[1765158732175,3.08,133.51,133.49,0.04796702]
[1765158732678,9.8207,133.51,133.49,0.04796702]
[1765158732881,3.08,133.5,133.49,0.04796702]
[1765158733271,3.08,133.5,133.39,3.3]
[1765158733470,3.08,133.45,133.41,2.00953]
[1765158733674,3.08,133.44,133.39,3.3]
[1765158733871,8.75423,133.43,133.39,3.3]
[1765158734072,11.83423,133.43,133.39,3.3]
[1765158734273,0.05025836,133.42,133.4,0.05737129]
[1765158734574,3.08,133.41,133.4,0.05737129]
[1765158736373,3.08,133.41,133.35,3.3]
[1765158737284,3.08,133.41,133.37,0.0480542]
[1765158737484,3.08,133.41,133.37,3.3480542]
[1765158743793,3.32,133.4,133.37,3.3480542]
[1765158745492,0.05025836,133.42,133.37,3.3480542]
[1765158746194,0.05025836,133.42,133.39,3.4]
[1765158747189,3.37025836,133.42,133.37,3.4480542]
[1765158748192,0.05025836,133.42,133.37,3.4480542]
[1765158749292,0.05025836,133.42,133.39,3.4]
[1765158749597,0.05025836,133.42,133.4,3.4]
[1765158749982,0.05025836,133.42,133.41,3.4]
[1765158751595,10.0627,133.47,133.41,3.4]
[1765158752391,0.04892632,133.45,133.41,3.4]
[1765158753298,0.04892632,133.45,133.42,3.4]
[1765158754198,0.04892632,133.45,133.44,3.4]
[1765158756799,0.04892632,133.45,133.44,6.54086351]
[1765158764903,0.04892632,133.45,133.44,3.4]
[1765158765204,3.36892632,133.45,133.43,3.44881933]
[1765158765898,3.36892632,133.45,133.43,0.04881933]
[1765158768008,0.04892632,133.45,133.43,3.20881933]
[1765158768194,3.16892632,133.45,133.43,0.04881933]
[1765158770511,3.12,133.44,133.38,74.42776351]
[1765158770806,3.12,133.44,133.38,77.58776351]
[1765158771210,3.12,133.43,133.38,3.16]
[1765158771611,3.12,133.41,133.39,0.05712807]
[1765158773414,3.12,133.39,133.32,9.91]
[1765158773708,3.12,133.38,133.31,3.16]
[1765158774301,3.12,133.38,133.32,3.16]
[1765158774506,0.04999789,133.36,133.34,0.05503266]
[1765158774897,3.16999789,133.36,133.34,0.05503266]
[1765158775096,0.04999789,133.36,133.34,3.21503266]
[1765158780619,0.04999789,133.36,133.35,6.28086351]
[1765158783527,0.04999789,133.36,133.35,3.14]
[1765158785525,0.04999789,133.36,133.34,3.19503266]
[1765158786526,0.04999789,133.36,133.35,6.28086351]
[1765158786727,3.27,133.41,133.34,3.19503266]
[1765158786921,3.27,133.41,133.32,67.66]
[1765158787121,3.27,133.41,133.31,3.14086351]
[1765158787122,3.27,133.38,133.31,3.14086351]
[1765158787326,3.27,133.37,133.29,13.03216351]
[1765158787523,3.27,133.37,133.29,6.28086351]
[1765158787728,3.3193593,133.34,133.32,0.04736432]
[1765158788027,3.27,133.33,133.27,3.14]
[1765158788417,3.27,133.32,133.25,3.14]
[1765158788622,3.27,133.32,133.22,3.14]
[1765158788623,3.27,133.3,133.22,3.14]
[1765158789025,3.27,133.3,133.23,3.14]
[1765158789331,0.05551168,133.27,133.25,3.1958158]
[1765158795632,6.7497,133.33,133.26,3.14]
[1765158795834,10.0597,133.33,133.26,3.14]
[1765158796034,3.31,133.32,133.26,3.14]
[1765158796537,0.05505172,133.3,133.28,0.04831144]
[1765158797338,0.05505172,133.3,133.28,3.18831144]
[1765158801542,3.32,133.36,133.31,3.2]
[1765158802040,3.33,133.39,133.31,3.2]
[1765158802240,3.33,133.39,133.32,3.2]
[1765158802442,0.05518852,133.37,133.35,3.2]
[1765158806052,0.05518852,133.37,133.35,9.9482]
[1765158806252,3.33,133.42,133.36,3.2]
[1765158806442,15.8037922,133.45,133.37,6.7475]
[1765158806650,10.0738,133.45,133.38,3.2]
[1765158807146,10.0742,133.44,133.38,3.2]
[1765158807449,0.05080237,133.42,133.4,3.25624019]
[1765158807647,3.38080237,133.42,133.4,0.05624019]
[1765158808436,0.05080237,133.42,133.4,3.25624019]
[1765158808654,3.38080237,133.42,133.4,0.05624019]
[1765158808851,0.05080237,133.42,133.4,3.25624019]
[1765158809350,3.38080237,133.42,133.4,0.05624019]
[1765158811056,0.05080237,133.42,133.4,3.25624019]
[1765158811553,0.05080237,133.42,133.4,0.05624019]
[1765158811750,3.38080237,133.42,133.4,0.05624019]
[1765158814451,0.05080237,133.42,133.4,3.25624019]
[1765158815354,0.05080237,133.42,133.4,0.05624019]
[1765158815846,0.05080237,133.42,133.4,3.25624019]
[1765158821956,0.05080237,133.42,133.4,10.00204019]
[1765158822257,0.05080237,133.42,133.41,3.2]
[1765158822452,10.0722,133.48,133.42,3.2]
[1765158822657,10.0713,133.5,133.42,3.2]
[1765158823456,0.05564689,133.47,133.46,3.2]
[1765158825258,3.33,133.53,133.48,3.2]
[1765158826150,3.37753586,133.52,133.49,3.25770689]
[1765158828655,3.37753586,133.52,133.49,5.26702684]
[1765158828855,3.37753586,133.52,133.49,0.05770689]
[1765158830359,0.04753586,133.52,133.5,3.34]
[1765158830662,3.16753586,133.52,133.49,0.05770689]
[1765158833167,3.16753586,133.52,133.49,2.06702684]
[1765158834065,2.00931995,133.5,133.4,3.34]
[1765158834265,5.12931995,133.48,133.42,5.34931995]
[1765158834465,3.12,133.48,133.44,5.34931995]
[1765158835366,0.04944566,133.47,133.45,3.39730653]
[1765158838573,3.24944566,133.47,133.45,0.05730653]
[1765158838770,0.04944566,133.47,133.45,3.21730653]
[1765158840267,10.1103084,133.57,133.47,3.16]
[1765158840474,3.2,133.55,133.52,2.00931995]
[1765158840671,3.2,133.54,133.46,3.86]
[1765158840976,3.2,133.5,133.46,3.16]
[1765158841162,3.2,133.5,133.46,2.00931995]
[1765158841359,0.04838868,133.49,133.47,3.2132233]
[1765158841564,0.05247691,133.49,133.48,5.16931995]
[1765158841965,3.2,133.56,133.49,3.16]
[1765158842172,3.2,133.56,133.51,5.16931995]
[1765158842375,3.2,133.56,133.52,3.16]
[1765158842871,0.05598456,133.55,133.53,0.04875275]
[1765158843762,0.05598456,133.55,133.53,5.2180727]
[1765158845167,0.05598456,133.55,133.54,3.16]
[1765158845566,0.05598456,133.55,133.53,2.0580727]
[1765158845773,0.05598456,133.55,133.53,5.2180727]
[1765158847179,3.25598456,133.55,133.53,0.04875275]
[1765158850583,0.05598456,133.55,133.53,5.2180727]
[1765158850974,0.05598456,133.55,133.53,2.0580727]
[1765158850975,3.25598456,133.55,133.53,2.0580727]
[1765158851375,3.25598456,133.55,133.53,0.04875275]
[1765158853077,9.99458456,133.55,133.53,0.04875275]
[1765158853382,3.2,133.54,133.53,0.04875275]
[1765158856072,0.05598456,133.55,133.53,3.20875275]
[1765158856272,0.05598456,133.55,133.54,3.16]
[1765158856481,0.05598456,133.55,133.53,5.2180727]
[1765158857681,0.05598456,133.55,133.53,2.0580727]
[1765158857885,3.34598456,133.55,133.53,0.04875275]
[1765158858086,0.05598456,133.55,133.53,3.21875275]
[1765158858592,0.05598456,133.55,133.53,5.2280727]
[1765158859287,0.05598456,133.55,133.54,3.17]
[1765158859486,0.05598456,133.55,133.53,11.9672727]
[1765158859884,0.05598456,133.55,133.54,3.17]
[1765158860086,5.74253784,133.59,133.56,3.17]
[1765158860286,3.29,133.6,133.57,3.17]
[1765158861287,3.34239776,133.6,133.57,0.05306158]
[1765158861980,3.29,133.59,133.57,0.05306158]
[1765158862695,12.03591995,133.59,133.57,0.05306158]
[1765158862995,3.29,133.58,133.57,0.05306158]
[1765158863698,9.24889381,133.58,133.57,0.05306158]
[1765158866108,3.29,133.58,133.57,0.05306158]
[1765158868505,3.29,133.56,133.52,2.00931995]
[1765158868807,3.29,133.55,133.5,11.92001995]
[1765158869011,3.29,133.55,133.51,3.17]
[1765158869507,3.29,133.55,133.52,0.05595143]
[1765158869711,0.04895488,133.54,133.52,3.22595143]
[1765158872315,0.04895488,133.54,133.52,5.23527138]
[1765158874804,0.04895488,133.54,133.52,3.22595143]
[1765158879020,0.04895488,133.54,133.52,9.96575143]
[1765158879219,0.04895488,133.54,133.53,3.17]
[1765158880408,8.8943193,133.58,133.54,6.7389]
[1765158880720,3.29,133.58,133.55,3.17]
[1765158881308,3.29,133.58,133.55,9.9083]
[1765158881513,3.34595886,133.58,133.55,9.96345698]
[1765158882710,3.34595886,133.58,133.55,0.05515698]
[1765158883318,3.29,133.56,133.51,3.17]
[1765158884315,0.05206422,133.55,133.52,3.22550556]
[1765158884716,6.9103084,133.61,133.55,3.17]
[1765158884916,5.61824851,133.6,133.55,3.17]
[1765158885115,3.29,133.62,133.55,3.17]
[1765158885315,5.61748924,133.61,133.55,3.17]
[1765158885517,5.61748924,133.6,133.55,3.17]
[1765158885717,3.29,133.62,133.55,3.17]
[1765158885918,0.04903419,133.59,133.56,6.35962476]
[1765158886118,0.04903419,133.59,133.57,3.17]
[1765158887924,3.36903419,133.59,133.56,3.18962476]
[1765158888224,3.36903419,133.59,133.56,0.05131896]
[1765158889016,10.10573419,133.59,133.56,0.05131896]
[1765158889220,3.32,133.58,133.56,0.05131896]
[1765158890027,10.0572,133.58,133.56,0.05131896]
[1765158890222,8.93647637,133.57,133.56,0.05131896]
[1765158895127,3.32,133.54,133.48,3.41]
[1765158896029,0.05294617,133.52,133.5,3.46407521]
[1765158900131,0.05294617,133.52,133.51,6.4483058]
[1765158900333,10.1303084,133.6,133.52,3.31]
[1765158900542,3.22,133.58,133.54,3.31]
[1765158901037,6.7372,133.58,133.54,3.31]
[1765158901238,0.05686275,133.57,133.56,3.31]
[1765158901543,10.01456275,133.57,133.55,0.04866284]
[1765158902345,6.79456275,133.57,133.55,3.35866284]
[1765158902932,0.05686275,133.57,133.55,3.35866284]
[1765158904145,3.27686275,133.57,133.55,0.04866284]
[1765158905148,3.22,133.55,133.49,6.4483058]
[1765158905340,3.22,133.53,133.49,3.31]
[1765158906135,0.05233457,133.52,133.5,0.05351701]
[1765158907042,0.05233457,133.52,133.5,3.36351701]
[1765158908252,3.27233457,133.52,133.5,0.05351701]
[1765158909451,0.05233457,133.52,133.5,3.36351701]
[1765158911955,3.27233457,133.52,133.5,0.05351701]
[1765158914461,0.05233457,133.52,133.51,6.4483058]
[1765158918156,0.00233457,133.52,133.51,6.4483058]
[1765158919560,0.00233457,133.52,133.51,3.31]
[1765158920057,3.41233457,133.52,133.5,0.05351701]
[1765158920255,0.00233457,133.52,133.5,3.20351701]
[1765158920454,3.41233457,133.52,133.5,0.05351701]
[1765158920757,0.00233457,133.52,133.5,3.20351701]
[1765158921158,3.41233457,133.52,133.5,0.05351701]
[1765158922858,0.00233457,133.52,133.5,3.20351701]
[1765158927263,5.66570061,133.56,133.51,3.1383058]
[1765158927464,3.41,133.6,133.53,3.1383058]
[1765158927674,9.07474471,133.59,133.54,3.15]
[1765158927859,3.41,133.61,133.54,3.15]
[1765158928164,9.07460439,133.6,133.56,3.15]
[1765158928467,5.72109062,133.59,133.57,0.05632756]
[1765158928668,0.05648623,133.59,133.57,0.05632756]
[1765158929366,3.46648623,133.59,133.57,0.05632756]
[1765158930567,0.05648623,133.59,133.57,3.20632756]
[1765158930763,0.05648623,133.59,133.57,0.05632756]
[1765158931356,5.6665227,133.58,133.57,0.05632756]
[1765158931561,5.6665227,133.58,133.57,3.20632756]
[1765158931859,5.6665227,133.58,133.57,0.05632756]
[1765158932566,5.6665227,133.58,133.57,3.20632756]
[1765158934268,0.05648623,133.59,133.57,3.20632756]
[1765158935156,0.05648623,133.59,133.57,0.05632756]
[1765158935360,3.46648623,133.59,133.57,0.05632756]
[1765158935659,3.41,133.58,133.57,0.05632756]
[1765158936260,0.05648623,133.59,133.57,3.20632756]
[1765158936775,0.05648623,133.59,133.57,5.21362297]
[1765158937667,0.05648623,133.59,133.58,3.15]
[1765158938771,0.05648623,133.59,133.57,3.20632756]
[1765158939871,3.46648623,133.59,133.57,0.05632756]
[1765158941072,3.46648623,133.59,133.57,3.20632756]
[1765158942670,10.20308623,133.59,133.57,0.05632756]
[1765158942866,3.41,133.58,133.57,0.05632756]
[1765158943073,3.41,133.58,133.54,2.00729541]
[1765158944072,3.41,133.58,133.55,0.04760991]
[1765158944473,3.41,133.56,133.55,0.04760991]
[1765158953781,3.41,133.56,133.51,3.15]
[1765158953974,3.1,133.54,133.5,3.3]
[1765158954867,0.04907629,133.53,133.51,3.35084829]
[1765158958092,0.04907629,133.53,133.51,5.3581437]
[1765158958589,0.04907629,133.53,133.52,3.13]
[1765158961081,0.04907629,133.53,133.51,5.1881437]
[1765158961282,3.27907629,133.53,133.51,0.05084829]
[1765158962587,0.04907629,133.53,133.52,3.13]
[1765158964695,3.27907629,133.53,133.51,2.0581437]
[1765158965178,3.27907629,133.53,133.51,0.05084829]
[1765158966683,3.27907629,133.53,133.51,3.18084829]
[1765158966884,0.04907629,133.53,133.51,3.18084829]
[1765158968692,0.04907629,133.53,133.51,5.1881437]
[1765158968898,0.04907629,133.53,133.52,3.13]
[1765158971391,0.04907629,133.53,133.51,3.18084829]
[1765158972800,3.27907629,133.53,133.51,3.18084829]
[1765158973004,5.23729541,133.52,133.51,0.05084829]
[1765158973194,3.23,133.52,133.51,0.05084829]
[1765158974502,3.27907629,133.53,133.51,0.05084829]
[1765158976300,10.01867629,133.53,133.51,0.05084829]
[1765158976799,3.23,133.52,133.51,0.05084829]
[1765158978202,6.7416,133.49,133.44,64.36]
[1765158978404,3.17,133.48,133.45,3.31]
[1765158978705,9.9116,133.49,133.45,3.31]
[1765158979206,0.05740949,133.48,133.47,3.31]
[1765158979395,0.05244677,133.49,133.47,3.31]
[1765158980099,0.05244677,133.49,133.48,2.00729541]
[1765158980300,2.00729541,133.54,133.48,5.31729541]
[1765158980494,3.17,133.54,133.51,3.31]
[1765158981097,9.9096,133.53,133.5,5.31729541]
[1765158981302,9.9096,133.53,133.51,3.31]
[1765158981502,9.96625113,133.53,133.51,3.31]
[1765158982604,6.79625113,133.53,133.51,3.31]
[1765158983610,0.05665113,133.53,133.51,3.31]
[1765158985011,3.22665113,133.53,133.5,5.37118882]
[1765158985212,3.22665113,133.53,133.5,0.05389341]
[1765158986109,3.22665113,133.53,133.5,3.36389341]
[1765158986514,9.96645113,133.53,133.5,3.36389341]
[1765158987415,0.05665113,133.53,133.5,5.37118882]
[1765158987716,0.05665113,133.53,133.51,3.31]
[1765158989806,3.22665113,133.53,133.5,5.37118882]
[1765158990614,3.22665113,133.53,133.51,3.31]
[1765158990826,0.05665113,133.53,133.51,3.31]
[1765158993914,3.22665113,133.53,133.5,2.06118882]
[1765158994120,9.96625113,133.53,133.5,5.37118882]
[1765158994719,9.96625113,133.53,133.5,3.36389341]
[1765158995017,3.17,133.52,133.5,0.05389341]
[1765158995405,3.17,133.52,133.5,3.36389341]
[1765158998018,3.17,133.52,133.5,0.05389341]
[1765158998219,9.9102,133.52,133.5,0.05389341]
[1765158998537,3.17,133.51,133.5,0.05389341]
[1765159000121,8.91040792,133.51,133.5,0.05389341]
[1765159000810,74.2502,133.52,133.5,0.05389341]
[1765159001523,8.91034853,133.51,133.5,0.05389341]
[1765159001723,3.17,133.51,133.5,0.05389341]
[1765159001922,8.91034853,133.51,133.5,0.05389341]
[1765159002224,5.74034853,133.51,133.5,0.05389341]
[1765159002412,5.74034853,133.51,133.5,3.36389341]
[1765159002616,67.56665113,133.53,133.5,3.36389341]
[1765159002923,5.74028336,133.52,133.5,3.36389341]
[1765159003109,3.17,133.52,133.5,3.36389341]
[1765159003312,3.17,133.52,133.5,0.05389341]
[1765159004125,0.05665113,133.53,133.5,3.36389341]
[1765159006019,3.22665113,133.53,133.5,3.36389341]
[1765159006422,3.22665113,133.53,133.5,0.05389341]
[1765159006621,3.17,133.51,133.5,0.05389341]
[1765159008726,3.36,133.5,133.46,3.18]
[1765159009727,0.0498468,133.49,133.47,3.22855167]
[1765159012623,3.36,133.47,133.43,3.18]
[1765159013724,3.36,133.47,133.44,3.22757441]
[1765159013925,3.41222291,133.47,133.44,3.22757441]
[1765159014531,9.09509433,133.46,133.4,3.18]
[1765159014728,3.36,133.44,133.37,6.7473]
[1765159014930,3.36,133.44,133.38,3.18]
[1765159015333,3.36,133.42,133.36,3.18]
[1765159015534,0.0490806,133.4,133.38,3.22773074]
[1765159016633,3.4090806,133.4,133.38,0.04773074]
[1765159018133,3.11,133.39,133.38,0.04773074]
[1765159018334,3.11,133.38,133.33,3.1]
[1765159018641,9.8578,133.37,133.33,3.1]
[1765159019327,9.8578,133.37,133.34,3.15126179]
[1765159019328,0.0565024,133.36,133.34,3.15126179]
[1765159020137,3.1665024,133.36,133.34,0.05126179]
[1765159020336,6.7486,133.35,133.34,0.05126179]
[1765159020531,9.8586,133.35,133.34,0.05126179]
[1765159021234,3.1665024,133.36,133.34,0.05126179]
[1765159021432,3.11,133.35,133.28,3.1]
[1765159021628,3.11,133.32,133.21,109.06345025]
[1765159021828,3.11,133.24,133.21,1.47909703]
[1765159022145,3.11,133.22,133.21,1.12109499]
[1765159022434,67.51,133.22,133.21,1.12109499]
[1765159022631,67.51,133.22,133.21,0.00109499]
[1765159022830,2.45,133.21,133.2,0.05017307]
[1765159023030,2.45,133.21,133.16,3.1]
[1765159023226,2.45,133.2,133.13,3.1]
[1765159023829,2.45,133.2,133.15,3.1]
[1765159024334,0.0482402,133.19,133.16,3.15451873]
[1765159025340,114.2828,133.17,133.06,3.1]
[1765159025543,2.4,133.17,133.07,3.1]
[1765159025739,2.4,133.2,133.11,3.1]
[1765159025935,2.4,133.23,133.14,3.1]
[1765159026239,2.4,133.23,133.17,3.1]
[1765159026442,2.45584344,133.2,133.14,3.1]
[1765159026935,66.99584344,133.2,133.14,3.1]
[1765159027532,64.56,133.19,133.14,3.1]
[1765159027734,66.96,133.19,133.14,3.1]
[1765159028146,2.4,133.18,133.14,3.1]
[1765159028334,2.45382165,133.17,133.1,8.3716744]
[1765159028534,2.45382165,133.17,133.1,3.1]
[1765159030240,2.4,133.16,133.1,3.1]
[1765159030435,0.05192596,133.14,133.1,3.1]
[1765159031134,0.05192596,133.14,133.1,108.2696]
[1765159031335,0.05192596,133.14,133.11,3.1]
[1765159031739,6.7558,133.21,133.13,3.1]
[1765159032240,172.1552,133.22,133.13,3.1]
[1765159032842,0.05516329,133.19,133.16,3.14789465]
[1765159035748,9.26186329,133.19,133.16,0.04789465]
[1765159035952,2.45,133.18,133.16,0.04789465]
[1765159036953,0.05516329,133.19,133.16,3.14789465]
[1765159037352,2.50516329,133.19,133.16,0.04789465]